[Event "Early-Titled-Tuesday-Blitz-February-13-2024"]
[Site "Chess.com"]
[Date "2024.02.13"]
[Round "1"]
[White "kekic76"]
[Black "CarlosjPineror"]
[Result "0-1"]
[WhiteElo "2374"]
[BlackElo "2706"]
[TimeControl "180+1"]
[EndTime "8:05:43 PST"]
[Termination "CarlosjPineror won on time"]

1. c4 {[%clk 0:02:51.9]} 1... Nf6 {[%clk 0:02:59.6]} 2. Nc3 {[%clk 0:02:52.3]}
2... c5 {[%clk 0:02:59.6]} 3. Nf3 {[%clk 0:02:52.7]} 3... e6 {[%clk 0:03:00]} 4.
g3 {[%clk 0:02:53.3]} 4... Nc6 {[%clk 0:03:00]} 5. Bg2 {[%clk 0:02:53.2]} 5...
a6 {[%clk 0:03:00.8]} 6. O-O {[%clk 0:02:52.7]} 6... Be7 {[%clk 0:03:01.5]} 7.
d3 {[%clk 0:02:53.3]} 7... O-O {[%clk 0:03:01.6]} 8. Bd2 {[%clk 0:02:53.8]} 8...
d5 {[%clk 0:03:01.9]} 9. cxd5 {[%clk 0:02:53.6]} 9... exd5 {[%clk 0:03:02.8]}
10. a3 {[%clk 0:02:53.7]} 10... d4 {[%clk 0:03:03.2]} 11. Nb1 {[%clk 0:02:39.8]}
11... Nd5 {[%clk 0:02:58.4]} 12. e3 {[%clk 0:02:22.2]} 12... dxe3 {[%clk
0:02:57.6]} 13. fxe3 {[%clk 0:02:21.5]} 13... Nf6 {[%clk 0:02:52.4]} 14. Qe2
{[%clk 0:02:17.9]} 14... Re8 {[%clk 0:02:49.8]} 15. Nc3 {[%clk 0:02:17.7]} 15...
Bf8 {[%clk 0:02:49.9]} 16. Be1 {[%clk 0:02:02.3]} 16... Bg4 {[%clk 0:02:47.2]}
17. Qd2 {[%clk 0:01:46.6]} 17... Qe7 {[%clk 0:02:41.2]} 18. Bf2 {[%clk
0:01:44.7]} 18... Rad8 {[%clk 0:02:41.8]} 19. Ng5 {[%clk 0:01:29.6]} 19... h6
{[%clk 0:02:29.8]} 20. Nge4 {[%clk 0:01:21.4]} 20... Nxe4 {[%clk 0:02:30]} 21.
Nxe4 {[%clk 0:01:20.4]} 21... Qe6 {[%clk 0:02:30.2]} 22. Qc2 {[%clk 0:01:07.3]}
22... b6 {[%clk 0:02:21.1]} 23. Rac1 {[%clk 0:00:48.9]} 23... Ne5 {[%clk
0:02:18.4]} 24. d4 {[%clk 0:00:37.4]} 24... cxd4 {[%clk 0:02:18.1]} 25. exd4
{[%clk 0:00:20.5]} 25... Nf3+ {[%clk 0:02:18.4]} 26. Bxf3 {[%clk 0:00:20.7]}
26... Bxf3 {[%clk 0:02:19.3]} 27. Nd2 {[%clk 0:00:20.5]} 27... Bd5 {[%clk
0:02:17.2]} 28. Be1 {[%clk 0:00:14.1]} 28... Qh3 {[%clk 0:02:06.8]} 29. Nf3
{[%clk 0:00:14.2]} 29... Bd6 {[%clk 0:01:57.8]} 30. Qg2 {[%clk 0:00:11.1]} 30...
Qg4 {[%clk 0:01:44.7]} 31. Bc3 {[%clk 0:00:04.6]} 31... Re3 {[%clk 0:01:43.8]}
0-1

[Event "Early-Titled-Tuesday-Blitz-February-13-2024"]
[Site "Chess.com"]
[Date "2024.02.13"]
[Round "1"]
[White "Bauman_Guy"]
[Black "ccccvhhhj"]
[Result "1-0"]
[WhiteElo "2878"]
[BlackElo "2490"]
[TimeControl "180+1"]
[EndTime "8:05:45 PST"]
[Termination "Bauman_Guy won on time"]

1. e4 {[%clk 0:03:00.9]} 1... e6 {[%clk 0:02:59.5]} 2. d4 {[%clk 0:03:00.9]}
2... d5 {[%clk 0:03:00.4]} 3. Nc3 {[%clk 0:03:01]} 3... Bb4 {[%clk 0:03:00.3]}
4. e5 {[%clk 0:03:01.3]} 4... c5 {[%clk 0:03:00.7]} 5. a3 {[%clk 0:03:02]} 5...
Bxc3+ {[%clk 0:03:01.5]} 6. bxc3 {[%clk 0:03:02.9]} 6... Ne7 {[%clk 0:03:02.2]}
7. Qg4 {[%clk 0:03:03.2]} 7... Kf8 {[%clk 0:03:02.9]} 8. a4 {[%clk 0:03:02.7]}
8... Qa5 {[%clk 0:03:02.7]} 9. Bd2 {[%clk 0:03:00.5]} 9... Qc7 {[%clk
0:03:00.7]} 10. Nf3 {[%clk 0:02:58.5]} 10... b6 {[%clk 0:03:00.3]} 11. h4 {[%clk
0:02:56.1]} 11... Ba6 {[%clk 0:02:57]} 12. Bb5 {[%clk 0:02:50.9]} 12... Bxb5
{[%clk 0:02:54.2]} 13. axb5 {[%clk 0:02:51.8]} 13... Nd7 {[%clk 0:02:54.9]} 14.
h5 {[%clk 0:02:51.1]} 14... h6 {[%clk 0:02:55.1]} 15. Rh3 {[%clk 0:02:49.1]}
15... cxd4 {[%clk 0:02:40.6]} 16. cxd4 {[%clk 0:02:48.3]} 16... Qxc2 {[%clk
0:02:38.1]} 17. Bb4 {[%clk 0:02:48.3]} 17... Qe4+ {[%clk 0:02:32.6]} 18. Qxe4
{[%clk 0:02:47.3]} 18... dxe4 {[%clk 0:02:33.5]} 19. Nd2 {[%clk 0:02:48.2]}
19... Ke8 {[%clk 0:02:28.1]} 20. Nxe4 {[%clk 0:02:45]} 20... Nf5 {[%clk
0:02:28.6]} 21. Rd3 {[%clk 0:02:40]} 21... f6 {[%clk 0:01:31.6]} 22. g4 {[%clk
0:02:35]} 22... Ne7 {[%clk 0:01:08.9]} 23. Nd6+ {[%clk 0:02:26.5]} 23... Kf8
{[%clk 0:01:08.8]} 24. Rda3 {[%clk 0:02:20.1]} 24... Nd5 {[%clk 0:01:04.8]} 25.
Rxa7 {[%clk 0:02:18.6]} 25... Rxa7 {[%clk 0:01:04]} 26. Rxa7 {[%clk 0:02:19.5]}
26... Nxb4 {[%clk 0:00:27.8]} 27. Rxd7 {[%clk 0:02:14]} 27... fxe5 {[%clk
0:00:18.7]} 28. dxe5 {[%clk 0:01:58.9]} 28... Kg8 {[%clk 0:00:11.1]} 29. Ne8
{[%clk 0:01:54.6]} 29... Kf8 {[%clk 0:00:07.3]} 30. Nxg7 {[%clk 0:01:53.7]}
30... Nd3+ {[%clk 0:00:02.2]} 31. Rxd3 {[%clk 0:01:52.1]} 31... Kxg7 {[%clk
0:00:02.5]} 32. Rd7+ {[%clk 0:01:53]} 32... Kf8 {[%clk 0:00:01.9]} 33. Rd8+
{[%clk 0:01:53.5]} 33... Kg7 {[%clk 0:00:02.4]} 34. Rxh8 {[%clk 0:01:54.4]} 1-0

[Event "Early-Titled-Tuesday-Blitz-February-13-2024"]
[Site "Chess.com"]
[Date "2024.02.13"]
[Round "1"]
[White "Pertinhez76"]
[Black "albi1999"]
[Result "0-1"]
[WhiteElo "2177"]
[BlackElo "2592"]
[TimeControl "180+1"]
[EndTime "8:05:48 PST"]
[Termination "albi1999 won by resignation"]

1. e4 {[%clk 0:02:59.9]} 1... c5 {[%clk 0:02:44.6]} 2. Nf3 {[%clk 0:02:59]} 2...
a6 {[%clk 0:02:44.5]} 3. d4 {[%clk 0:02:58.9]} 3... cxd4 {[%clk 0:02:45.4]} 4.
Nxd4 {[%clk 0:02:59.2]} 4... Nf6 {[%clk 0:02:42.8]} 5. Nc3 {[%clk 0:02:58.2]}
5... e5 {[%clk 0:02:43.4]} 6. Nf5 {[%clk 0:02:56.8]} 6... d5 {[%clk 0:02:42.6]}
7. Bg5 {[%clk 0:02:50.8]} 7... d4 {[%clk 0:02:38.2]} 8. Nd5 {[%clk 0:02:49.5]}
8... Bxf5 {[%clk 0:02:36.4]} 9. Bxf6 {[%clk 0:02:49.4]} 9... gxf6 {[%clk
0:02:33.8]} 10. Qf3 {[%clk 0:02:49]} 10... Be6 {[%clk 0:02:30.5]} 11. Nxf6+
{[%clk 0:02:48.8]} 11... Ke7 {[%clk 0:02:30.7]} 12. g4 {[%clk 0:02:35.7]} 12...
Bh6 {[%clk 0:02:27.3]} 13. h4 {[%clk 0:02:34.8]} 13... Bf4 {[%clk 0:02:26.5]}
14. g5 {[%clk 0:02:32.5]} 14... Qa5+ {[%clk 0:02:23]} 15. c3 {[%clk 0:02:32.2]}
15... dxc3 {[%clk 0:02:22.1]} 16. bxc3 {[%clk 0:02:33.1]} 16... Rc8 {[%clk
0:02:21.2]} 17. Rh3 {[%clk 0:02:04.7]} 17... Nd7 {[%clk 0:02:13.7]} 18. Nd5+
{[%clk 0:01:54.6]} 18... Bxd5 {[%clk 0:02:09.5]} 19. exd5 {[%clk 0:01:55.5]}
19... Kd6 {[%clk 0:01:55.4]} 20. Rd1 {[%clk 0:01:52.8]} 20... Nb6 {[%clk
0:01:47.8]} 21. Qd3 {[%clk 0:01:48.2]} 21... Na4 {[%clk 0:01:44.2]} 22. Qxh7
{[%clk 0:01:41.2]} 22... Rxc3 {[%clk 0:01:42.9]} 23. Qh6+ {[%clk 0:01:41.2]}
23... Kc5 {[%clk 0:01:42.1]} 24. Rxc3+ {[%clk 0:01:34.9]} 24... Qxc3+ {[%clk
0:01:40.1]} 25. Ke2 {[%clk 0:01:34.1]} 25... Qc2+ {[%clk 0:01:39.8]} 26. Kf3
{[%clk 0:01:33.5]} 26... Qxd1+ {[%clk 0:01:38.9]} 27. Kg2 {[%clk 0:01:30.9]}
27... Qg4+ {[%clk 0:01:35.9]} 28. Kh1 {[%clk 0:01:31.2]} 28... Qf3+ {[%clk
0:01:32.1]} 29. Kg1 {[%clk 0:01:27.7]} 29... Qxd5 {[%clk 0:01:31.3]} 30. Qh7
{[%clk 0:01:04.3]} 30... Nc3 {[%clk 0:01:27.5]} 31. Qc2 {[%clk 0:01:02.2]} 31...
Qd4 {[%clk 0:01:25.2]} 32. Qb3 {[%clk 0:00:57.3]} 32... Ne4 {[%clk 0:01:16.4]}
33. Qc2+ {[%clk 0:00:47.4]} 33... Kb6 {[%clk 0:01:15.7]} 34. Bg2 {[%clk
0:00:46]} 34... Qxf2+ {[%clk 0:01:07.4]} 35. Qxf2+ {[%clk 0:00:45.1]} 35... Nxf2
{[%clk 0:01:08.3]} 36. Kxf2 {[%clk 0:00:45.7]} 36... Rh8 {[%clk 0:01:08.3]} 0-1

[Event "Early-Titled-Tuesday-Blitz-February-13-2024"]
[Site "Chess.com"]
[Date "2024.02.13"]
[Round "1"]
[White "pirulillo"]
[Black "Orest_Vovk"]
[Result "0-1"]
[WhiteElo "2291"]
[BlackElo "2639"]
[TimeControl "180+1"]
[EndTime "8:05:51 PST"]
[Termination "Orest_Vovk won on time"]

1. e4 {[%clk 0:00:38.1]} 1... g5 {[%clk 0:02:37.9]} 2. d4 {[%clk 0:00:36.8]}
2... g4 {[%clk 0:02:37.8]} 3. Qxg4 {[%clk 0:00:33.8]} 3... d5 {[%clk 0:02:37.4]}
4. Qe2 {[%clk 0:00:33.9]} 4... dxe4 {[%clk 0:02:37.6]} 5. Qxe4 {[%clk
0:00:34.3]} 5... Nf6 {[%clk 0:02:38.2]} 6. Qd3 {[%clk 0:00:34.2]} 6... Nc6
{[%clk 0:02:38.4]} 7. Nf3 {[%clk 0:00:33.9]} 7... Bg4 {[%clk 0:02:39]} 8. c3
{[%clk 0:00:33.9]} 8... Qd5 {[%clk 0:02:39.4]} 9. Be2 {[%clk 0:00:32.1]} 9...
O-O-O {[%clk 0:02:39.4]} 10. O-O {[%clk 0:00:28.9]} 10... e5 {[%clk 0:02:33.7]}
11. Qe3 {[%clk 0:00:22]} 11... exd4 {[%clk 0:02:15.5]} 12. cxd4 {[%clk
0:00:18.5]} 12... Re8 {[%clk 0:02:07.5]} 13. Qf4 {[%clk 0:00:16]} 13... Rxe2
{[%clk 0:02:02.6]} 14. Nc3 {[%clk 0:00:15.2]} 14... Qe6 {[%clk 0:01:41]} 15.
Nxe2 {[%clk 0:00:14.3]} 15... Bd6 {[%clk 0:01:38.9]} 16. Qg5 {[%clk 0:00:11.7]}
16... Bxf3 {[%clk 0:01:27.5]} 17. Nf4 {[%clk 0:00:10.3]} 17... Bxf4 {[%clk
0:01:26.1]} 18. Bxf4 {[%clk 0:00:09.8]} 18... Rg8 {[%clk 0:01:22]} 19. Qxg8+
{[%clk 0:00:08.7]} 19... Nxg8 {[%clk 0:01:21.5]} 20. gxf3 {[%clk 0:00:09.6]}
20... Nxd4 {[%clk 0:01:18.9]} 21. Bg3 {[%clk 0:00:08.5]} 21... Nxf3+ {[%clk
0:01:18.4]} 22. Kh1 {[%clk 0:00:08.3]} 22... Qe4 {[%clk 0:01:17.7]} 0-1

[Event "Early-Titled-Tuesday-Blitz-February-13-2024"]
[Site "Chess.com"]
[Date "2024.02.13"]
[Round "1"]
[White "LeoWin2012"]
[Black "OrtizAnahi2001"]
[Result "0-1"]
[WhiteElo "2224"]
[BlackElo "2604"]
[TimeControl "180+1"]
[EndTime "8:05:51 PST"]
[Termination "OrtizAnahi2001 won by resignation"]

1. e4 {[%clk 0:03:00.9]} 1... e5 {[%clk 0:02:58.9]} 2. Nf3 {[%clk 0:02:58.8]}
2... Nc6 {[%clk 0:02:58.7]} 3. d4 {[%clk 0:02:58.2]} 3... exd4 {[%clk 0:02:58]}
4. Nxd4 {[%clk 0:02:59.1]} 4... Nf6 {[%clk 0:02:57.2]} 5. Nc3 {[%clk 0:02:57.2]}
5... Bb4 {[%clk 0:02:56]} 6. Nxc6 {[%clk 0:02:54.3]} 6... bxc6 {[%clk
0:02:55.6]} 7. Bd3 {[%clk 0:02:53]} 7... d5 {[%clk 0:02:54]} 8. exd5 {[%clk
0:02:53.9]} 8... cxd5 {[%clk 0:02:54.1]} 9. O-O {[%clk 0:02:53.3]} 9... O-O
{[%clk 0:02:52.9]} 10. Bg5 {[%clk 0:02:53.6]} 10... c6 {[%clk 0:02:52]} 11. Qf3
{[%clk 0:02:53.8]} 11... Bd6 {[%clk 0:02:51.5]} 12. Bxf6 {[%clk 0:02:52.6]}
12... Qxf6 {[%clk 0:02:50.6]} 13. Qxf6 {[%clk 0:02:52.9]} 13... gxf6 {[%clk
0:02:51.4]} 14. Ne2 {[%clk 0:02:53.2]} 14... Rb8 {[%clk 0:02:51.2]} 15. b3
{[%clk 0:02:50.2]} 15... Re8 {[%clk 0:02:21.6]} 16. Nd4 {[%clk 0:02:23.5]} 16...
Bd7 {[%clk 0:02:18.4]} 17. Nf5 {[%clk 0:02:17.9]} 17... Bf8 {[%clk 0:02:17.3]}
18. Rfe1 {[%clk 0:02:09.8]} 18... c5 {[%clk 0:02:16.6]} 19. Ne3 {[%clk
0:01:44.4]} 19... Be6 {[%clk 0:02:13.5]} 20. c4 {[%clk 0:01:35.8]} 20... d4
{[%clk 0:01:58.5]} 21. Nd5 {[%clk 0:01:32.3]} 21... Kg7 {[%clk 0:01:56.4]} 22.
Re2 {[%clk 0:01:30.9]} 22... Bg4 {[%clk 0:01:52.4]} 23. f3 {[%clk 0:01:29.1]}
23... Rxe2 {[%clk 0:01:41.2]} 24. Bxe2 {[%clk 0:01:30]} 24... Bf5 {[%clk
0:01:40.2]} 25. Rd1 {[%clk 0:01:21]} 25... Re8 {[%clk 0:01:39.2]} 26. Kf2 {[%clk
0:01:21]} 26... Bd6 {[%clk 0:01:36.7]} 27. g3 {[%clk 0:01:16.9]} 27... h5 {[%clk
0:01:26.3]} 28. Bd3 {[%clk 0:01:09.2]} 28... Bd7 {[%clk 0:01:25.3]} 29. a3
{[%clk 0:01:03.1]} 29... a5 {[%clk 0:01:23.4]} 30. Be4 {[%clk 0:00:54.4]} 30...
Rb8 {[%clk 0:01:22]} 31. Rd3 {[%clk 0:00:49.1]} 31... f5 {[%clk 0:01:20.3]} 32.
b4 {[%clk 0:00:40.7]} 32... fxe4 {[%clk 0:01:19.6]} 33. fxe4 {[%clk 0:00:41.3]}
33... axb4 {[%clk 0:01:19.9]} 34. axb4 {[%clk 0:00:42.2]} 34... cxb4 {[%clk
0:01:20.5]} 35. Kf3 {[%clk 0:00:42.3]} 35... Bc5 {[%clk 0:01:20.3]} 36. Rb3
{[%clk 0:00:41.2]} 36... Ba4 {[%clk 0:01:17.9]} 37. Rb1 {[%clk 0:00:40.9]} 37...
b3 {[%clk 0:01:18.5]} 38. Kf4 {[%clk 0:00:41.1]} 38... b2 {[%clk 0:01:18.5]} 39.
Ke5 {[%clk 0:00:41]} 39... Bc2 {[%clk 0:01:18.2]} 40. Rxb2 {[%clk 0:00:41.7]}
40... Rxb2 {[%clk 0:01:15.8]} 41. Nf4 {[%clk 0:00:42.6]} 0-1

[Event "Early-Titled-Tuesday-Blitz-February-13-2024"]
[Site "Chess.com"]
[Date "2024.02.13"]
[Round "1"]
[White "Anton_Demchenko"]
[Black "colegiodemadrid"]
[Result "1-0"]
[WhiteElo "2931"]
[BlackElo "2510"]
[TimeControl "180+1"]
[EndTime "8:05:56 PST"]
[Termination "Anton_Demchenko won by checkmate"]

1. e4 {[%clk 0:02:58.2]} 1... e5 {[%clk 0:02:50.8]} 2. Nf3 {[%clk 0:02:57.7]}
2... Nc6 {[%clk 0:02:50.5]} 3. Bc4 {[%clk 0:02:57.2]} 3... Nf6 {[%clk
0:02:49.9]} 4. d3 {[%clk 0:02:57.8]} 4... Bc5 {[%clk 0:02:49.2]} 5. Bg5 {[%clk
0:02:57.4]} 5... h6 {[%clk 0:02:47.9]} 6. Bh4 {[%clk 0:02:57.7]} 6... g5 {[%clk
0:02:47.6]} 7. Bg3 {[%clk 0:02:57.9]} 7... d6 {[%clk 0:02:45.8]} 8. c3 {[%clk
0:02:58.5]} 8... Qe7 {[%clk 0:02:45.4]} 9. Nbd2 {[%clk 0:02:57.8]} 9... a6
{[%clk 0:02:43.9]} 10. O-O {[%clk 0:02:54.6]} 10... Be6 {[%clk 0:02:41.5]} 11.
b4 {[%clk 0:02:51.7]} 11... Ba7 {[%clk 0:02:41.2]} 12. a4 {[%clk 0:02:52.3]}
12... h5 {[%clk 0:02:37.6]} 13. h4 {[%clk 0:02:33]} 13... Bg4 {[%clk 0:02:33.5]}
14. Qc2 {[%clk 0:02:22.3]} 14... Nh7 {[%clk 0:02:27.9]} 15. b5 {[%clk 0:02:19]}
15... Na5 {[%clk 0:02:13.9]} 16. Bd5 {[%clk 0:02:12]} 16... Rg8 {[%clk 0:02:08]}
17. bxa6 {[%clk 0:02:05.4]} 17... c6 {[%clk 0:02:06.5]} 18. axb7 {[%clk
0:02:05.6]} 18... Qxb7 {[%clk 0:02:05.3]} 19. Ba2 {[%clk 0:02:04.3]} 19... gxh4
{[%clk 0:02:00.7]} 20. Bxh4 {[%clk 0:01:54.1]} 20... Qd7 {[%clk 0:01:59.1]} 21.
d4 {[%clk 0:01:45.5]} 21... Bxf3 {[%clk 0:01:40.4]} 22. Nxf3 {[%clk 0:01:45.9]}
22... Qg4 {[%clk 0:01:40.4]} 23. Bg3 {[%clk 0:01:39.8]} 23... h4 {[%clk
0:01:38.8]} 24. Nxh4 {[%clk 0:01:38]} 24... exd4 {[%clk 0:01:36.9]} 25. Nf5
{[%clk 0:01:28.5]} 25... dxc3 {[%clk 0:01:16.4]} 26. Qxc3 {[%clk 0:01:19.4]}
26... Ng5 {[%clk 0:01:07.2]} 27. Qf6 {[%clk 0:01:03.1]} 27... Bc5 {[%clk
0:00:32]} 28. Qe7# {[%clk 0:01:01.7]} 1-0

[Event "Early-Titled-Tuesday-Blitz-February-13-2024"]
[Site "Chess.com"]
[Date "2024.02.13"]
[Round "1"]
[White "KuzubovYuriy"]
[Black "Ykow"]
[Result "1-0"]
[WhiteElo "2916"]
[BlackElo "2506"]
[TimeControl "180+1"]
[EndTime "8:06:04 PST"]
[Termination "KuzubovYuriy won by resignation"]

1. d4 {[%clk 0:03:00.9]} 1... d5 {[%clk 0:02:58.9]} 2. c4 {[%clk 0:02:59.8]}
2... e6 {[%clk 0:02:58]} 3. Nf3 {[%clk 0:02:59.6]} 3... Nf6 {[%clk 0:02:56.9]}
4. Nc3 {[%clk 0:02:59.9]} 4... c6 {[%clk 0:02:56.6]} 5. e3 {[%clk 0:03:00.2]}
5... Nbd7 {[%clk 0:02:55.8]} 6. Be2 {[%clk 0:03:00.4]} 6... Bd6 {[%clk
0:02:54.4]} 7. b3 {[%clk 0:02:59.6]} 7... O-O {[%clk 0:02:53.5]} 8. Qc2 {[%clk
0:02:54.6]} 8... b6 {[%clk 0:02:52.7]} 9. O-O {[%clk 0:02:53.3]} 9... Bb7 {[%clk
0:02:52.6]} 10. Bb2 {[%clk 0:02:53]} 10... Rc8 {[%clk 0:02:52.5]} 11. Rad1
{[%clk 0:02:52.5]} 11... Qe7 {[%clk 0:02:52.7]} 12. Rfe1 {[%clk 0:02:43.9]}
12... c5 {[%clk 0:02:24.4]} 13. cxd5 {[%clk 0:02:23.8]} 13... exd5 {[%clk
0:02:21.3]} 14. Qb1 {[%clk 0:02:15.7]} 14... Rfe8 {[%clk 0:02:08]} 15. Bb5
{[%clk 0:02:04.8]} 15... a6 {[%clk 0:02:02.3]} 16. Bxd7 {[%clk 0:02:04.1]} 16...
Qxd7 {[%clk 0:02:01.8]} 17. Na4 {[%clk 0:02:01.1]} 17... Qc6 {[%clk 0:01:06.2]}
18. dxc5 {[%clk 0:01:59.1]} 18... bxc5 {[%clk 0:01:07.1]} 19. Bxf6 {[%clk
0:01:55.8]} 19... gxf6 {[%clk 0:01:08]} 20. Qf5 {[%clk 0:01:53.6]} 20... Bf8
{[%clk 0:01:08]} 21. Nc3 {[%clk 0:01:41.7]} 21... Rcd8 {[%clk 0:01:07.3]} 22.
Ne2 {[%clk 0:01:40.8]} 22... Bc8 {[%clk 0:01:04.3]} 23. Qh5 {[%clk 0:01:35]}
23... Re4 {[%clk 0:00:42.3]} 24. h3 {[%clk 0:01:33.6]} 24... a5 {[%clk
0:00:29.6]} 25. Nc3 {[%clk 0:01:28]} 25... Re6 {[%clk 0:00:21.3]} 26. Rxd5
{[%clk 0:01:21.6]} 26... Rxd5 {[%clk 0:00:19.6]} 27. Nxd5 {[%clk 0:01:21.7]}
27... Bb7 {[%clk 0:00:18.7]} 28. Nf4 {[%clk 0:01:21.7]} 28... Rd6 {[%clk
0:00:18.5]} 29. Rc1 {[%clk 0:01:14.5]} 29... Qe4 {[%clk 0:00:17.7]} 30. Kh2
{[%clk 0:01:06.4]} 30... Rd7 {[%clk 0:00:16.9]} 31. Qg4+ {[%clk 0:01:05.1]} 1-0

[Event "Early-Titled-Tuesday-Blitz-February-13-2024"]
[Site "Chess.com"]
[Date "2024.02.13"]
[Round "1"]
[White "Macron20hTF1"]
[Black "cthake"]
[Result "1-0"]
[WhiteElo "2554"]
[BlackElo "1798"]
[TimeControl "180+1"]
[EndTime "8:06:04 PST"]
[Termination "Macron20hTF1 won by resignation"]

1. Nf3 {[%clk 0:03:00.2]} 1... d5 {[%clk 0:02:51.9]} 2. e3 {[%clk 0:03:00]} 2...
c6 {[%clk 0:02:51.1]} 3. c4 {[%clk 0:03:00.3]} 3... Nf6 {[%clk 0:02:48.3]} 4.
Nc3 {[%clk 0:03:00.8]} 4... Bg4 {[%clk 0:02:44.4]} 5. h3 {[%clk 0:02:58.9]} 5...
Bh5 {[%clk 0:02:39.9]} 6. cxd5 {[%clk 0:02:56.9]} 6... cxd5 {[%clk 0:02:39.5]}
7. Qb3 {[%clk 0:02:56.6]} 7... Qd7 {[%clk 0:02:27.6]} 8. g4 {[%clk 0:02:56.3]}
8... Bg6 {[%clk 0:02:26.9]} 9. Ne5 {[%clk 0:02:56.8]} 9... Qc7 {[%clk
0:02:14.5]} 10. d4 {[%clk 0:02:51.8]} 10... Nc6 {[%clk 0:02:12.8]} 11. Bb5
{[%clk 0:02:44.5]} 11... e6 {[%clk 0:02:11.7]} 12. h4 {[%clk 0:02:40.5]} 12...
h5 {[%clk 0:02:07.7]} 13. g5 {[%clk 0:02:37.5]} 13... Nd7 {[%clk 0:02:07.3]} 14.
Nxg6 {[%clk 0:02:37.3]} 14... fxg6 {[%clk 0:02:06.4]} 15. Bd3 {[%clk 0:02:35]}
15... O-O-O {[%clk 0:02:00]} 16. Bd2 {[%clk 0:02:30.5]} 16... Nb6 {[%clk
0:01:56.5]} 17. Bxg6 {[%clk 0:02:28.6]} 17... Nc4 {[%clk 0:01:55.4]} 18. Bd3
{[%clk 0:02:27.2]} 18... N6a5 {[%clk 0:01:53.3]} 19. Qc2 {[%clk 0:02:21.1]}
19... Nxd2 {[%clk 0:01:52.2]} 20. Kxd2 {[%clk 0:02:20.8]} 20... Nc4+ {[%clk
0:01:52.6]} 21. Bxc4 {[%clk 0:02:21.1]} 21... Qxc4 {[%clk 0:01:52.6]} 22. Qd3
{[%clk 0:02:21.7]} 22... Qc6 {[%clk 0:01:42.5]} 23. Rac1 {[%clk 0:02:21.1]}
23... Kb8 {[%clk 0:01:42.8]} 24. Rc2 {[%clk 0:02:14.4]} 24... Qd7 {[%clk
0:01:40.1]} 25. Rhc1 {[%clk 0:02:14.3]} 25... Bd6 {[%clk 0:01:38.3]} 26. Nb5
{[%clk 0:02:13.9]} 26... Rc8 {[%clk 0:01:34.6]} 27. Rxc8+ {[%clk 0:02:13.3]}
27... Rxc8 {[%clk 0:01:33.9]} 28. Rxc8+ {[%clk 0:02:13.3]} 28... Kxc8 {[%clk
0:01:31.1]} 29. Nxa7+ {[%clk 0:02:13.5]} 29... Kb8 {[%clk 0:01:31.2]} 30. Nb5
{[%clk 0:02:12.8]} 30... Bb4+ {[%clk 0:01:30.4]} 31. Kc2 {[%clk 0:02:08.7]}
31... Qc6+ {[%clk 0:01:28]} 32. Nc3 {[%clk 0:02:09.1]} 32... Bd6 {[%clk
0:01:20.8]} 33. Qg6 {[%clk 0:02:05.5]} 33... Qd7 {[%clk 0:01:17.1]} 34. Qxh5
{[%clk 0:02:04.1]} 34... e5 {[%clk 0:01:15.9]} 35. Qd1 {[%clk 0:01:59.9]} 35...
Qf5+ {[%clk 0:01:14.4]} 36. Kb3 {[%clk 0:01:55.9]} 36... e4 {[%clk 0:01:08.5]}
37. Qe2 {[%clk 0:01:51.8]} 37... g6 {[%clk 0:01:06.5]} 38. a3 {[%clk 0:01:52.1]}
38... Qh3 {[%clk 0:01:04.1]} 39. Nxd5 {[%clk 0:01:49.6]} 39... Qxh4 {[%clk
0:01:02.8]} 40. Qc2 {[%clk 0:01:42.4]} 40... Qxg5 {[%clk 0:01:01.5]} 41. Qxe4
{[%clk 0:01:42.5]} 41... Qd8 {[%clk 0:00:52.6]} 42. f4 {[%clk 0:01:41.3]} 42...
g5 {[%clk 0:00:45.1]} 43. fxg5 {[%clk 0:01:40]} 43... Qxg5 {[%clk 0:00:44.1]}
44. Qe6 {[%clk 0:01:35]} 44... Bc7 {[%clk 0:00:41.1]} 45. Nxc7 {[%clk
0:01:34.9]} 45... Kxc7 {[%clk 0:00:40.6]} 46. Qe5+ {[%clk 0:01:35.5]} 46... Qxe5
{[%clk 0:00:39.9]} 47. dxe5 {[%clk 0:01:36.4]} 47... Kd7 {[%clk 0:00:39.2]} 48.
Kc4 {[%clk 0:01:37]} 48... Ke6 {[%clk 0:00:39.5]} 49. Kb5 {[%clk 0:01:37.7]}
49... Kxe5 {[%clk 0:00:39.1]} 50. Kb6 {[%clk 0:01:38.4]} 50... Ke4 {[%clk
0:00:39.9]} 51. Kxb7 {[%clk 0:01:39]} 51... Kxe3 {[%clk 0:00:40.7]} 52. b4
{[%clk 0:01:39.6]} 52... Kd4 {[%clk 0:00:41.6]} 53. b5 {[%clk 0:01:40.1]} 53...
Kc4 {[%clk 0:00:41.8]} 54. b6 {[%clk 0:01:39.8]} 54... Kb5 {[%clk 0:00:42.4]}
55. Kc7 {[%clk 0:01:40.2]} 55... Ka4 {[%clk 0:00:40.9]} 56. b7 {[%clk
0:01:41.1]} 56... Kxa3 {[%clk 0:00:41.4]} 57. b8=Q {[%clk 0:01:41.7]} 57... Ka4
{[%clk 0:00:41.7]} 58. Qb6 {[%clk 0:01:41.7]} 1-0